bitfinex/quotes_BTCUSD_20250212
["timestamp","ask_amount","ask_price","bid_price","bid_amount"]
[1739366953138,0.15624,96624.0,96620.0,0.001]
[1739366953331,0.15728172,96624.0,96620.0,0.001]
[1739366953539,0.00204172,96624.0,96614.0,0.155256]
[1739366953902,0.00404172,96624.0,96614.0,0.156256]
[1739366954200,0.155242,96623.0,96614.0,0.156256]
[1739366954443,0.14938099,96622.0,96614.0,0.001]
[1739366954643,0.155255,96615.0,96614.0,0.001]
[1739366954875,0.25775865,96615.0,96614.0,0.001]
[1739366955017,0.10250365,96615.0,96601.0,0.00022386]
[1739366955212,0.10354537,96614.0,96601.0,0.00022386]
[1739366955717,0.207011,96613.0,96601.0,0.00022386]
[1739366955985,0.10354537,96612.0,96602.0,0.155276]
[1739366956143,0.10250365,96612.0,96601.0,0.00022386]
[1739366956342,0.25776365,96612.0,96601.0,0.00022386]
[1739366956545,0.25776365,96612.0,96601.0,0.15550086]
[1739366956725,0.10250365,96612.0,96601.0,0.00022386]
[1739366956931,0.10250365,96612.0,96602.0,0.207035]
[1739366958326,0.0001066,96624.0,96601.0,0.00022386]
[1739366958468,0.0001066,96624.0,96616.0,0.155252]
[1739366958831,0.1553476,96624.0,96616.0,0.155252]
[1739366959200,0.1553476,96624.0,96601.0,0.00122386]
[1739366959201,0.155256,96615.0,96605.0,0.15527]
[1739366959403,0.31055537,96614.0,96604.0,0.155272]
[1739366959753,0.0081066,96624.0,96601.0,0.00022386]
[1739366959864,0.10250365,96623.0,96617.0,0.155252]
[1739366960067,0.0031066,96624.0,96614.0,0.207008]
[1739366960265,0.0031066,96624.0,96618.0,0.15525]
[1739366960883,0.0031066,96624.0,96605.0,0.00103497]
[1739366961089,0.0031066,96624.0,96623.0,0.155242]
[1739366961490,0.0001066,96624.0,96623.0,0.155242]
[1739366962143,0.0051066,96624.0,96623.0,0.156242]
[1739366962574,0.0071066,96624.0,96623.0,0.156242]
[1739366962777,0.0001066,96624.0,96623.0,0.155242]
[1739366962927,0.0081066,96624.0,96623.0,0.156242]
[1739366963138,0.0111066,96624.0,96623.0,0.156242]
[1739366963656,0.0131066,96624.0,96623.0,0.156242]
[1739366964602,0.0051066,96624.0,96623.0,0.155242]
[1739366964854,0.0071066,96624.0,96623.0,0.156242]
[1739366965025,0.0051066,96624.0,96623.0,0.156242]
[1739366965265,0.0001066,96624.0,96623.0,0.256242]
[1739366965465,0.0001066,96624.0,96623.0,0.255242]
[1739366965670,0.0001066,96624.0,96623.0,0.256242]
[1739366965845,0.0001066,96624.0,96623.0,0.257242]
[1739366966023,0.0001066,96624.0,96623.0,0.256242]
[1739366966224,0.0001066,96624.0,96623.0,0.261242]
[1739366966553,0.0011066,96624.0,96623.0,0.260242]
[1739366967001,0.0041066,96624.0,96623.0,0.260242]
[1739366967170,0.0041066,96624.0,96623.0,0.360242]
[1739366967589,0.0031066,96624.0,96623.0,0.355242]
[1739366967794,0.0111066,96624.0,96623.0,0.356242]
[1739366968299,0.0001066,96624.0,96623.0,0.355242]
[1739366968506,0.0001066,96624.0,96623.0,0.356242]
[1739366968736,0.0011066,96624.0,96623.0,0.460242]
[1739366968945,0.0011066,96624.0,96623.0,0.56274565]
[1739366969152,0.0011066,96624.0,96623.0,0.71374565]
[1739366969353,0.0011066,96624.0,96623.0,0.461242]
[1739366969942,0.0011066,96624.0,96623.0,0.460242]
[1739366970171,0.0011066,96624.0,96623.0,0.461242]
[1739366970576,0.0001066,96624.0,96623.0,0.456242]
[1739366970797,0.0001066,96624.0,96623.0,0.556242]
[1739366970999,0.0011066,96624.0,96623.0,0.560242]
[1739366971374,0.0001066,96624.0,96623.0,0.556242]
[1739366971672,0.0001066,96624.0,96623.0,0.555242]
[1739366971904,0.0011066,96624.0,96623.0,0.563242]
[1739366972041,0.0011066,96624.0,96623.0,0.562242]
[1739366972225,0.0001066,96624.0,96623.0,0.555242]
[1739366972473,0.0011066,96624.0,96623.0,0.563242]
[1739366972673,0.0011066,96624.0,96623.0,0.562242]
[1739366973129,0.0011066,96624.0,96623.0,0.563242]
[1739366973569,0.0011066,96624.0,96623.0,0.562242]
[1739366974351,0.0001066,96624.0,96623.0,0.65774565]
[1739366974529,0.0001066,96624.0,96623.0,0.65974565]
[1739366974967,0.0001066,96624.0,96623.0,0.65774565]
[1739366975168,0.0001066,96624.0,96623.0,0.65874565]
[1739366975487,0.0011066,96624.0,96623.0,0.66874565]
[1739366975850,0.0011066,96624.0,96623.0,0.566242]
[1739366977302,0.0001066,96624.0,96623.0,0.556242]
[1739366977671,0.0011066,96624.0,96623.0,0.564242]
[1739366977910,0.0011066,96624.0,96623.0,0.563242]
[1739366978540,0.0001066,96624.0,96623.0,0.555242]
[1739366978705,0.0001066,96624.0,96623.0,0.559242]
[1739366978885,0.0011066,96624.0,96623.0,0.559242]
[1739366979301,0.0011066,96624.0,96623.0,0.560242]
[1739366979501,0.0011066,96624.0,96623.0,0.559242]
[1739366979681,0.0011066,96624.0,96623.0,0.560242]
[1739366979907,0.0011066,96624.0,96623.0,0.405]
[1739366980114,0.0011066,96624.0,96623.0,0.404]
[1739366980317,0.0001066,96624.0,96623.0,0.401]
[1739366980546,0.0001066,96624.0,96623.0,0.405]
[1739366980742,0.0011066,96624.0,96623.0,0.404]
[1739366980963,0.0011066,96624.0,96623.0,0.405]
[1739366981144,0.0001066,96624.0,96623.0,0.401]
[1739366981323,0.10361025,96624.0,96623.0,0.405]
[1739366981550,0.25885025,96624.0,96623.0,0.405]
[1739366981926,0.10261025,96624.0,96623.0,0.401]
[1739366982134,0.0001066,96624.0,96623.0,0.403]
[1739366982348,0.0001066,96624.0,96623.0,0.402]
[1739366982569,0.0001066,96624.0,96623.0,0.403]
[1739366982725,0.0001066,96624.0,96623.0,0.402]
[1739366983287,0.0001066,96624.0,96623.0,0.403]
[1739366983874,0.10261025,96624.0,96623.0,0.403]
[1739366984741,0.10261025,96624.0,96623.0,0.401]
[1739366985345,0.10261025,96624.0,96623.0,0.4]
[1739366985710,0.11761025,96624.0,96623.0,0.401]
[1739366986523,0.11361025,96624.0,96623.0,0.401]
[1739366986728,0.10661025,96624.0,96623.0,0.4]
[1739366986929,0.0041066,96624.0,96623.0,0.4]
[1739366987064,0.0001066,96624.0,96623.0,0.4]
[1739366987521,0.0041066,96624.0,96623.0,0.4]
[1739366987932,0.0141066,96624.0,96623.0,0.401]
[1739366988430,0.0041066,96624.0,96623.0,0.4]
[1739366988792,0.0041066,96624.0,96623.0,0.403]
[1739366989244,0.0001066,96624.0,96623.0,0.403]
[1739366989650,0.0011066,96624.0,96623.0,0.403]
[1739366990247,0.0011066,96624.0,96623.0,0.401]
[1739366990399,0.0011066,96624.0,96623.0,0.404]
[1739366991005,0.0011066,96624.0,96623.0,0.401]
[1739366991210,0.0011066,96624.0,96623.0,0.404]
[1739366995457,0.0011066,96624.0,96623.0,0.50650365]
[1739366997492,0.0001066,96624.0,96623.0,0.50250365]
[1739366997681,0.0011066,96624.0,96623.0,0.51050365]
[1739366998107,3.80313827,96625.0,96624.0,0.15524]
[1739366998423,3.80313827,96625.0,96624.0,0.25774365]
[1739366999373,3.80413827,96625.0,96624.0,0.26774365]
[1739367000567,3.80413827,96625.0,96624.0,0.16524]
[1739367001113,3.06685733,96625.0,96624.0,0.98054365]
[1739367001317,2.88467891,96625.0,96624.0,1.07752265]
[1739367001514,0.11693244,96662.0,96622.0,0.06257]
[1739367001714,0.01,96615.0,96525.0,0.05143742]
[1739367001914,0.5296007,96614.0,96593.0,0.09225554]
[1739367002119,0.01,96602.0,96593.0,0.09225554]
[1739367002372,0.01,96602.0,96554.0,0.07686241]
[1739367002373,0.00799765,96536.0,96515.0,0.01035898]
[1739367002705,0.155516,96453.0,96446.0,0.33117895]
[1739367002906,0.01,96534.0,96391.0,0.00411897]
[1739367002907,0.38797621,96433.0,96391.0,0.00411897]
[1739367003126,0.16149803,96390.0,96389.0,7e-07]
[1739367003325,0.00588103,96297.0,96289.0,0.04381826]
[1739367003482,0.01,96293.0,96214.0,1.5]
[1739367003648,0.00129891,96292.0,96251.0,0.01044626]
[1739367003842,0.1310703,96117.0,96023.0,0.05209064]
[1739367004049,0.191,96110.0,96001.0,0.0121636]
[1739367004258,0.10250365,96104.0,96099.0,0.33117895]
[1739367004623,0.30989928,96116.0,96000.0,3.3e-07]
[1739367004624,0.02,96001.0,96000.0,3.3e-07]
[1739367004845,0.0018458,95948.0,95890.0,0.0081542]
[1739367005052,0.01,96009.0,95954.0,0.166324]
[1739367005248,0.00020833,95998.0,95903.0,0.15222769]
[1739367005466,0.166406,95904.0,95903.0,0.15222769]
[1739367005673,0.20843,95956.0,95941.0,0.01]
[1739367005788,0.3428,95997.0,95942.0,0.00104194]
[1739367005989,0.01,95975.0,95919.0,0.00041687]
[1739367006213,0.00020837,95983.0,95916.0,0.01]
[1739367006435,0.01,95879.0,95870.0,0.3]
[1739367006626,0.01,95843.0,95755.0,0.0778]
[1739367006822,0.01,95843.0,95669.0,0.05208302]
[1739367006823,0.28572738,95756.0,95565.0,0.15532]
[1739367007029,1.04442713,95756.0,95575.0,0.01855169]
[1739367007226,0.18517524,95594.0,95575.0,0.01855169]
[1739367007422,0.18517524,95594.0,95483.0,0.15532]
[1739367007423,1.04442713,95594.0,95593.0,0.156915]
[1739367007692,1.04442713,95594.0,95523.0,0.33117895]
[1739367007693,0.5733,95593.0,95523.0,0.33117895]
[1739367007851,0.7748,95593.0,95535.0,0.3]
[1739367008052,0.01,95596.0,95595.0,0.01]
[1739367008253,0.00020821,95666.0,95609.0,0.0098655]
[1739367008452,0.00020821,95666.0,95589.0,0.01]
[1739367008713,0.33117895,95633.0,95602.0,0.00982358]
[1739367008924,0.33117895,95643.0,95570.0,0.00020991]
[1739367009047,0.01044278,95609.0,95608.0,0.01]
[1739367009245,0.156887,95610.0,95524.0,0.15584]
[1739367009246,0.01073171,95641.0,95612.0,0.00416504]
[1739367009471,0.01073171,95641.0,95575.0,0.00020925]
[1739367009472,0.156943,95576.0,95575.0,0.00020925]
[1739367009672,0.156943,95576.0,95575.0,4e-08]
[1739367010079,1.04442713,95576.0,95528.0,0.00021]
[1739367010266,0.1966,95581.0,95545.0,0.00057624]
[1739367010478,0.209363,95528.0,95524.0,0.15264663]
[1739367010704,0.00999996,95512.0,95484.0,0.04387149]
[1739367010837,0.16541117,95485.0,95484.0,0.04387149]
[1739367011038,0.157092,95485.0,95484.0,0.04387149]
[1739367011239,0.00831917,95480.0,95444.0,7e-05]
[1739367011488,0.11411619,95485.0,95463.0,0.00168083]
[1739367011659,0.11411619,95485.0,95425.0,0.00168083]
[1739367011660,1.06013633,95485.0,95425.0,0.00168083]
[1739367011861,0.157219,95408.0,95407.0,0.00630759]
[1739367012061,0.00829947,95408.0,95407.0,0.00798842]
[1739367012265,0.157207,95416.0,95407.0,0.11049207]
[1739367012478,1.046995,95512.0,95443.0,0.00168083]
[1739367012736,0.3,95588.0,95407.0,0.00630759]
[1739367012737,0.05201317,95590.0,95452.0,0.00041905]
[1739367012942,0.20955137,95599.0,95598.0,0.00061054]
[1739367013169,0.20955137,95599.0,95490.0,0.01]
[1739367013170,0.00255945,95519.0,95490.0,0.01]
[1739367013379,0.00255945,95519.0,95518.0,0.01]
[1739367013380,0.00214087,95519.0,95518.0,0.01]
[1739367013677,0.00214087,95519.0,95407.0,0.00630694]
[1739367013678,0.05228972,95510.0,95407.0,0.00630694]
[1739367013964,0.157178,95433.0,95431.0,0.01]
[1739367014116,0.05275288,95508.0,95441.0,0.01]
[1739367014313,0.136,95432.0,95400.0,5.3e-07]
[1739367014516,0.209666,95390.0,95373.0,9.4e-07]
[1739367014699,0.541505,95389.0,95335.0,0.157339]
[1739367014921,0.167371,95316.0,95213.0,0.1]
[1739367015144,0.352151,95316.0,95255.0,0.209961]
[1739367015348,0.352151,95316.0,95315.0,0.02759848]
[1739367015349,0.551505,95316.0,95315.0,0.02759848]
[1739367015716,0.01,95280.0,95265.0,0.06373296]
[1739367015867,0.38886198,95388.0,95265.0,0.06373296]
[1739367015868,0.00041922,95346.0,95265.0,0.06417393]
[1739367016194,0.0323788,95458.0,95336.0,0.35035547]
[1739367016399,0.02097831,95436.0,95370.0,0.35077494]
[1739367016608,1.047091,95503.0,95370.0,0.00041947]
[1739367016609,0.02060512,95405.0,95370.0,0.00041947]
[1739367016735,0.01,95401.0,95310.0,0.35035547]
[1739367016941,0.10268207,95362.0,95336.0,0.0001067]
[1739367017137,0.10268207,95362.0,95258.0,0.01]
[1739367017138,0.09268207,95337.0,95256.0,0.157469]
[1739367017363,0.01,95310.0,95250.0,0.01]
[1739367017564,0.7281,95361.0,95250.0,0.01]
[1739367017780,0.02146667,95367.0,95244.0,0.138]
[1739367017981,0.0024,95319.0,95317.0,0.157369]
[1739367018187,0.05242786,95489.0,95263.0,0.91535636]
[1739367018188,0.35035547,95430.0,95318.0,0.8515]
[1739367018496,0.02068801,95357.0,95230.0,0.30538382]
[1739367018677,3.123277,95356.0,95318.0,0.00044097]
[1739367018924,0.354159,95355.0,95318.0,0.00879384]
[1739367019200,0.01,95355.0,95354.0,0.00879384]
[1739367019443,0.01,95355.0,95283.0,0.00041963]
[1739367019444,0.01,95355.0,95330.0,0.10250365]
[1739367019660,0.01,95355.0,95283.0,0.00041963]
[1739367019661,0.00120616,95334.0,95248.0,0.00879384]
[1739367019785,0.00120616,95334.0,95222.0,0.00015069]
[1739367019786,0.35035547,95310.0,95224.0,0.11533862]
[1739367019993,0.00041976,95300.0,95227.0,0.420048]
[1739367020201,0.00120616,95349.0,95342.0,0.157326]
[1739367020405,0.00120616,95376.0,95297.0,0.314803]
[1739367020608,1.616373,95375.0,95231.0,0.00044154]
[1739367020815,0.01,95354.0,95353.0,0.15710021]
[1739367021056,0.13601022,95375.0,95371.0,0.15728]
[1739367021378,0.35035547,95460.0,95334.0,0.191]
[1739367021586,0.02149606,95481.0,95334.0,0.191]
[1739367021587,0.01,95416.0,95335.0,0.458665]
[1739367021791,0.01,95432.0,95354.0,0.08385085]
[1739367022001,0.01,95431.0,95355.0,0.00838509]
[1739367022201,0.35035547,95420.0,95357.0,0.00020973]
[1739367022409,0.35035547,95400.0,95357.0,0.10250365]
[1739367022535,0.0020462,95415.0,95412.0,0.157212]
[1739367022736,0.0020462,95415.0,95365.0,0.0004193]
[1739367022941,0.0020462,95415.0,95300.0,0.35035547]
[1739367022942,0.0020461,95414.0,95366.0,0.06158723]
[1739367023146,0.0020461,95414.0,95406.0,0.15517721]
[1739367023395,0.01,95404.0,95371.0,0.08385085]
[1739367023630,0.15836,95403.0,95330.0,0.36894081]
[1739367023833,0.01,95368.0,95362.0,0.157294]
[1739367024061,0.00860219,95352.0,95351.0,0.157313]
[1739367024269,0.00020963,95402.0,95401.0,0.157231]
[1739367024504,0.0020461,95414.0,95413.0,0.157211]
[1739367024927,0.00860219,95423.0,95365.0,0.08385085]
[1739367025136,0.00860219,95403.0,95365.0,0.08385085]
[1739367025374,0.00860219,95403.0,95402.0,0.00706443]
[1739367025576,0.00882899,95421.0,95420.0,0.00429714]
[1739367025702,0.00860219,95393.0,95363.0,0.209723]
[1739367025907,0.00860219,95393.0,95338.0,0.08385085]
[1739367025908,0.00860219,95393.0,95347.0,0.01]
[1739367026191,0.00860219,95381.0,95352.0,0.157311]
[1739367026368,0.35035547,95362.0,95346.0,0.157321]
[1739367026570,0.35035547,95362.0,95291.0,0.0209723]
[1739367026571,0.00860219,95356.0,95291.0,0.01269313]
[1739367026770,0.00860219,95347.0,95346.0,0.157321]
[1739367026923,0.00860219,95332.0,95325.0,0.209806]
[1739367027124,0.00860219,95332.0,95275.0,0.042019]
[1739367027125,0.33565847,95350.0,95287.0,0.314836]
[1739367027323,0.03356585,95349.0,95288.0,0.00768238]
[1739367027554,0.03356585,95349.0,95262.0,0.000108]
[1739367027782,0.02083999,95289.0,95288.0,0.157417]
[1739367027959,0.00020973,95358.0,95314.0,0.209831]
[1739367028166,0.08385085,95336.0,95273.0,0.08385085]
[1739367028377,0.02074968,95327.0,95324.0,0.157357]
[1739367028528,0.03147496,95369.0,95343.0,0.157326]
[1739367028768,0.03147496,95369.0,95314.0,0.0004425]
[1739367028769,0.03147496,95369.0,95333.0,0.157342]
[1739367028996,0.03147496,95369.0,95314.0,0.0004425]
[1739367029221,0.08385085,95328.0,95249.0,0.041844]
[1739367029464,0.35035547,95280.0,95262.0,0.0005502]
[1739367029616,0.132498,95279.0,95200.0,4e-05]
[1739367029818,0.16023,95289.0,95211.0,0.0004432]
[1739367030025,0.35035547,95270.0,95261.0,0.157461]
[1739367030226,0.11352,95269.0,95212.0,0.00319942]
[1739367030435,0.35035547,95270.0,95183.0,0.00111]
[1739367030638,0.35035547,95270.0,95171.0,0.08405085]
[1739367030639,0.01,95257.0,95171.0,0.06213085]
[1739367030843,0.01,95193.0,95192.0,0.152576]
[1739367031108,0.005,95194.0,95193.0,0.157574]
[1739367031317,0.00042006,95259.0,95192.0,0.00975394]
[1739367031469,0.417836,95258.0,95192.0,0.00044374]
[1739367031707,0.18256,95257.0,95193.0,0.00913581]
[1739367031919,0.00785056,95210.0,95192.0,0.00044374]
[1739367032098,0.02118862,95197.0,95192.0,0.00044374]
[1739367032299,0.02118862,95197.0,95196.0,0.157569]
[1739367032501,1.8e-07,95210.0,95209.0,0.157548]
[1739367032852,0.00021,95238.0,95209.0,0.00060117]
[1739367033074,0.04070265,95256.0,95209.0,0.00060117]
[1739367033279,0.00042003,95272.0,95209.0,0.00060117]
[1739367033280,0.04070265,95210.0,95209.0,0.00060117]
[1739367033472,0.04070265,95210.0,95209.0,0.157548]
[1739367033680,0.04070265,95210.0,95209.0,0.15805209]
[1739367033890,0.08385085,95238.0,95237.0,0.157501]
[1739367034083,0.02097231,95289.0,95272.0,0.00183976]
[1739367034309,0.07185387,95317.0,95237.0,0.00048417]
[1739367034550,0.02095549,95340.0,95270.0,0.35035547]
[1739367034907,0.10250365,95271.0,95270.0,0.35035547]
[1739367035118,0.00656803,95330.0,95270.0,0.35035547]
[1739367035119,0.00656803,95330.0,95270.0,0.00044374]
[1739367035395,0.08385085,95314.0,95270.0,0.00044374]
[1739367035598,0.35035547,95310.0,95224.0,0.210031]
[1739367035802,0.00656803,95330.0,95290.0,0.08385085]
[1739367035993,0.00022701,95334.0,95280.0,0.08385085]
[1739367035994,0.00656803,95313.0,95310.0,0.35035547]
[1739367036202,0.00656803,95313.0,95311.0,0.226767]
[1739367036380,0.00656803,95313.0,95310.0,0.15738]
[1739367036552,0.00656803,95313.0,95291.0,0.0081226]
[1739367036758,0.10250365,95292.0,95291.0,0.0081226]
[1739367036959,0.00656803,95313.0,95280.0,0.35035547]
[1739367037309,0.00656803,95312.0,95291.0,0.00881162]
[1739367037463,0.00656803,95312.0,95311.0,0.157379]
[1739367037666,0.00656803,95312.0,95291.0,0.00044418]
[1739367037667,3e-08,95312.0,95305.0,0.209852]
[1739367037865,3e-08,95312.0,95311.0,0.157379]
[1739367038114,0.10250368,95312.0,95309.0,0.157381]
[1739367038320,3e-08,95312.0,95311.0,0.157379]
[1739367038638,0.00022701,95334.0,95333.0,0.157343]
[1739367038947,1e-08,95334.0,95333.0,0.15593805]
[1739367039102,0.00022701,95408.0,95405.0,0.157224]
[1739367039304,0.00022701,95408.0,95390.0,0.35035547]
[1739367039305,0.10250365,95406.0,95390.0,0.35035547]
[1739367039507,0.10250365,95406.0,95405.0,0.15630516]
[1739367039664,0.0002268,95421.0,95420.0,0.157199]
[1739367040080,0.0002268,95517.0,95443.0,0.157161]
[1739367040324,0.042001,95492.0,95443.0,0.157161]
[1739367040525,0.0002268,95517.0,95495.0,0.157076]
[1739367040724,0.08385085,95514.0,95495.0,0.157076]
[1739367040987,0.041995,95508.0,95495.0,0.157076]
[1739367041187,0.041995,95508.0,95495.0,0.10250365]
[1739367041390,0.041995,95508.0,95495.0,0.11089195]
[1739367041616,0.0002268,95517.0,95495.0,0.0014206]
[1739367041816,0.0002268,95517.0,95495.0,0.00762802]
[1739367042220,0.10273045,95496.0,95441.0,0.08385085]
[1739367042481,0.00118243,95494.0,95442.0,0.10250365]
[1739367042995,0.10250365,95493.0,95492.0,0.157081]
[1739367043149,0.10250365,95493.0,95467.0,0.209496]
[1739367043415,0.08385085,95471.0,95381.0,0.01]
[1739367043667,0.00118243,95494.0,95451.0,0.08385085]
[1739367043871,0.00118243,95494.0,95468.0,0.10250365]
[1739367044081,0.00118243,95494.0,95431.0,0.21001949]
[1739367044082,0.08385085,95464.0,95390.0,0.35035547]
[1739367044377,0.35035547,95460.0,95366.0,0.01]
[1739367044591,0.35035547,95460.0,95360.0,0.35035547]
[1739367044592,0.08426959,95477.0,95404.0,0.209634]
[1739367044799,0.35035547,95450.0,95374.0,0.08385085]
[1739367044909,0.35035547,95470.0,95375.0,0.00838509]
[1739367045140,0.01505554,95463.0,95422.0,0.157194]
[1739367045371,0.35035547,95460.0,95382.0,0.00041915]
[1739367045769,0.01,95485.0,95382.0,0.00041915]
[1739367045770,0.05218437,95561.0,95539.0,0.157003]
[1739367045965,0.00916172,95498.0,95485.0,0.00020945]
[1739367046169,0.00916172,95498.0,95424.0,0.01]
[1739367046350,0.00916172,95498.0,95295.0,0.1]
[1739367046351,0.00916172,95498.0,95423.0,0.01]
[1739367046577,0.00916172,95498.0,95395.0,0.419309]
[1739367046779,0.00020945,95484.0,95395.0,0.419309]
[1739367047089,0.00020945,95484.0,95356.0,0.08385085]
[1739367047090,0.35035547,95480.0,95356.0,0.08385085]
[1739367047297,0.35035547,95460.0,95356.0,0.08385085]
[1739367047473,0.15,95419.0,95356.0,0.08385085]
[1739367047678,0.35035547,95400.0,95382.0,0.00044546]
[1739367047883,0.01,95364.0,95273.0,0.01]
[1739367048190,0.35035547,95380.0,95270.0,0.35035547]
[1739367048475,0.01,95382.0,95290.0,0.35035547]
[1739367048681,0.00041925,95387.0,95270.0,0.35035547]
[1739367048682,0.01,95375.0,95270.0,0.35035547]
[1739367048887,0.01,95375.0,95309.0,0.157381]
[1739367048888,0.33441298,95353.0,95309.0,0.157381]
[1739367049090,0.10250365,95352.0,95313.0,0.157375]
[1739367049310,0.10250365,95352.0,95310.0,0.45285912]
[1739367049512,0.0004339,95375.0,95310.0,0.45285912]
[1739367049513,0.0004339,95375.0,95330.0,0.35035547]
[1739367049660,0.0021703,95379.0,95373.0,0.157275]
[1739367049867,0.157169,95439.0,95354.0,0.35035547]
[1739367049868,0.05277089,95475.0,95386.0,0.157255]
[1739367050070,0.209497,95467.0,95410.0,0.35035547]
[1739367050278,0.004201,95474.0,95430.0,0.35035547]
[1739367050526,0.004201,95474.0,95445.0,0.15531526]
[1739367050527,0.00269737,95446.0,95445.0,0.15531526]
[1739367050729,0.00269737,95446.0,95389.0,0.00020966]
[1739367050730,0.00269737,95446.0,95444.0,0.157158]
[1739367050904,0.00269737,95446.0,95445.0,0.11821945]
[1739367051239,0.00269737,95446.0,95431.0,0.15]
[1739367051443,1.04444908,95469.0,95434.0,0.10250365]
[1739367051701,1.04444908,95469.0,95441.0,0.10250365]
[1739367051902,1.04444908,95469.0,95442.0,0.10250365]
[1739367052102,1.04444908,95469.0,95390.0,0.35035547]
[1739367052259,0.00020951,95457.0,95426.0,0.157188]
[1739367052470,0.00020951,95457.0,95422.0,0.10250365]
[1739367052471,0.00106419,95442.0,95422.0,0.10250365]
[1739367052673,0.00106419,95442.0,95395.0,0.01]
[1739367052867,0.00106419,95442.0,95403.0,0.10250365]
[1739367053072,0.00020951,95457.0,95426.0,0.10250365]
[1739367053277,0.75021948,95468.0,95451.0,0.157147]
[1739367053475,0.71266046,95468.0,95430.0,0.35035547]
[1739367053678,0.70373509,95468.0,95467.0,0.157122]
[1739367053880,0.6991854,95468.0,95467.0,0.157122]
[1739367054102,0.6991854,95468.0,95467.0,0.0576138]
[1739367054300,0.6991854,95468.0,95467.0,0.10250365]
[1739367054676,0.6991854,95468.0,95354.0,0.01]
[1739367054901,0.6991854,95468.0,95403.0,0.10250365]
[1739367054902,0.35035547,95420.0,95403.0,0.10250365]
[1739367055076,0.15,95419.0,95375.0,5.485e-05]
[1739367055277,0.15,95409.0,95404.0,0.00796426]
[1739367055475,0.00041915,95449.0,95311.0,0.02073165]
[1739367055476,0.023,95403.0,95311.0,0.02073165]
[1739367055735,0.10250365,95395.0,95336.0,0.10250365]
[1739367055900,0.10250365,95395.0,95348.0,0.157318]
[1739367056077,0.00020961,95412.0,95346.0,0.209761]
[1739367056276,0.00020957,95433.0,95349.0,0.00805907]
[1739367056482,0.10250365,95401.0,95350.0,0.35035547]
[1739367056683,0.15,95400.0,95354.0,0.10250365]
[1739367056977,0.10250365,95389.0,95351.0,0.00576098]
[1739367057187,0.10250365,95389.0,95337.0,0.0004339]
[1739367057188,0.10250365,95389.0,95355.0,0.00572612]
[1739367057366,0.023,95382.0,95337.0,0.0004339]
[1739367057563,0.10250365,95383.0,95310.0,0.30378937]
[1739367057771,0.10293755,95383.0,95331.0,0.209795]
[1739367057968,0.10293755,95383.0,95275.0,0.37735295]
[1739367057969,0.0150076,95381.0,95350.0,0.35035547]
[1739367058198,0.0150076,95381.0,95370.0,0.35035547]
[1739367058397,0.0120037,95409.0,95380.0,0.10250365]
[1739367058616,0.0120037,95409.0,95389.0,0.15725]
[1739367058859,0.0120037,95409.0,95388.0,0.10250365]
[1739367059070,0.0120037,95409.0,95389.0,0.10250365]
[1739367059276,1.04444908,95409.0,95389.0,0.10250365]
[1739367059464,1.04444908,95409.0,95398.0,0.157235]
[1739367059766,1.04444908,95409.0,95399.0,0.10250365]
[1739367060184,1.04444908,95409.0,95360.0,0.35035547]
[1739367060185,1.04444908,95409.0,95367.0,0.209714]
[1739367060375,0.023,95407.0,95373.0,0.02135454]
[1739367060580,0.023,95405.0,95320.0,0.35035547]
[1739367060795,0.10250365,95404.0,95360.0,0.35035547]
[1739367061081,0.10250365,95404.0,95330.0,0.00020979]
[1739367061082,0.46616075,95408.0,95383.0,0.20968]
[1739367061294,0.46616075,95408.0,95382.0,0.000108]
[1739367062061,0.46616075,95408.0,95383.0,0.10250365]
[1739367062289,0.46616075,95404.0,95382.0,0.000108]
[1739367062734,0.023,95403.0,95355.0,0.0004339]
[1739367063098,1.04444908,95427.0,95355.0,0.0003939]
[1739367063285,0.10250365,95410.0,95385.0,0.157256]
[1739367063512,0.10250365,95410.0,95356.0,0.10250365]
[1739367063513,0.08381791,95408.0,95356.0,0.10250365]
[1739367063720,0.00656191,95426.0,95356.0,0.10250365]
[1739367063941,0.35035547,95440.0,95356.0,0.10250365]
[1739367064058,0.08381791,95446.0,95356.0,0.10250365]
[1739367064059,0.35035547,95420.0,95356.0,0.10250365]
[1739367064262,0.157239,95396.0,95356.0,0.10250365]
[1739367064512,0.10250365,95390.0,95356.0,0.0004339]
[1739367064708,0.35035547,95420.0,95357.0,0.06282043]
[1739367064709,0.10250365,95387.0,95357.0,0.06282043]
[1739367064910,0.08381791,95417.0,95357.0,0.06282043]
[1739367064911,0.10250365,95385.0,95357.0,0.06282043]
[1739367065130,0.10250365,95385.0,95356.0,0.0004339]
[1739367065497,0.0121122,95419.0,95356.0,0.09737089]
[1739367065701,0.0121122,95419.0,95347.0,0.08381791]
[1739367065702,0.01853284,95390.0,95357.0,0.10250365]
[1739367065927,0.00525143,95444.0,95357.0,0.10250365]
[1739367065928,0.0121122,95435.0,95380.0,0.35035547]
[1739367066455,0.0121122,95435.0,95400.0,0.35035547]
[1739367066782,0.0121122,95435.0,95418.0,0.02131972]
[1739367066996,0.08381791,95453.0,95385.0,0.02095037]
[1739367067201,0.03849559,95434.0,95389.0,0.08381791]
[1739367067332,0.03849559,95434.0,95411.0,0.08381791]
[1739367067516,0.03849559,95434.0,95389.0,0.08381791]
[1739367067716,0.03849559,95434.0,95379.0,0.05001761]
[1739367067717,0.023,95433.0,95379.0,0.05001761]
[1739367067943,0.03849559,95434.0,95379.0,0.05001761]
[1739367068143,0.03849559,95434.0,95392.0,0.08381791]
[1739367068345,0.023,95433.0,95407.0,0.08381791]
[1739367068546,0.00043442,95435.0,95408.0,0.10250365]
[1739367068881,0.00043442,95435.0,95379.0,0.05001761]
[1739367068882,0.00043442,95435.0,95392.0,0.08381791]
[1739367069080,0.00043442,95435.0,95379.0,0.05001761]
[1739367069286,0.00043442,95435.0,95380.0,0.157265]
[1739367069524,0.00043442,95435.0,95396.0,0.08381791]
[1739367069903,0.08381791,95487.0,95414.0,0.10250365]
[1739367070244,0.08381791,95487.0,95415.0,0.01025037]
[1739367070383,0.10250365,95475.0,95418.0,0.10250365]
[1739367070815,0.209483,95473.0,95429.0,0.08381791]
[1739367071154,0.10250365,95465.0,95434.0,0.02094856]
[1739367071452,0.10250365,95465.0,95434.0,0.10250365]
[1739367071679,0.0002268,95480.0,95435.0,0.10250365]
[1739367072092,0.10250365,95475.0,95436.0,0.29338091]
[1739367072300,0.10250365,95475.0,95437.0,0.10250365]